Workbook

Sheet Peredacha
A1: X | B1: Y | C1: =(MAX(A2:A21)-MIN(A2:A21))/1000 -> 0.110556
A2: 40 | B2: 2.75 | C2: =MIN(A2:A21) -> 40 | D2: =КУБ_СПЛАЙН(A2:A21,B2:B21,C2:C1002) -> 2.75
A3: 43.33 | B3: 2.733333333 | C3: =C2+$C$1 -> 40.110556 | D3: 2.749195146
A4: 46.882 | B4: 2.733333333 | C4: 40.221112 | D4: 2.748391958
A5: 49.99 | B5: 2.7 | C5: 40.331668 | D5: 2.747592099
A6: 51.988 | B6: 2.716666667 | C6: 40.442224 | D6: 2.746797237
A7: 56.428 | B7: 2.8 | C7: 40.55278 | D7: 2.746009036
A8: 60.202 | B8: 2.883333333 | C8: 40.663336 | D8: 2.745229161
A9: 63.754 | B9: 5 | C9: 40.773892 | D9: 2.744459277
A10: 69.526 | B10: 3.2 | C10: 40.884448 | D10: 2.74370105
A11: 74.632 | B11: 3.383333333 | C11: 40.995004 | D11: 2.742956145
A12: 79.294 | B12: 3.55 | C12: 41.10556 | D12: 2.742226228
A13: 84.4 | B13: 3.75 | C13: 41.216116 | D13: 2.741512963
A14: 89.506 | B14: 3.933333333 | C14: 41.326672 | D14: 2.740818015
A15: 97.498 | B15: 4.25 | C15: 41.437228 | D15: 2.740143051
A16: 103.492 | B16: 3 | C16: 41.547784 | D16: 2.739489735
A17: 111.484 | B17: 4.766666667 | C17: 41.65834 | D17: 2.738859733
A18: 119.254 | B18: 5.033333333 | C18: 41.768896 | D18: 2.738254709
A19: 127.024 | B19: 5.35 | C19: 41.879452 | D19: 2.737676329
A20: 137.68 | B20: 5.783333333 | C20: 41.990008 | D20: 2.737126259
A21: 150.556 | B21: 6.35 | C21: 42.100564 | D21: 2.736606163
C22: 42.21112 | D22: 2.736117707
A23: для одиночного значения | C23: 42.321676 | D23: 2.735662556
C24: 42.432232 | D24: 2.735242375
A25: 45 | B25: =КУБ_СПЛАЙН(A2:A21,B2:B21,A25,TRUE) -> 2.735780086 | C25: 42.542788 | D25: 2.73485883
C26: 42.653344 | D26: 2.734513585
C27: 42.7639 | D27: 2.734208307
C28: 42.874456 | D28: 2.73394466
C29: 42.985012 | D29: 2.733724309
C30: 43.095568 | D30: 2.73354892
C31: 43.206124 | D31: 2.733420158
C32: 43.31668 | D32: 2.733339689
C33: 43.427236 | D33: 2.73330849
C34: 43.537792 | D34: 2.733323582
C35: 43.648348 | D35: 2.733380573
C36: 43.758904 | D36: 2.733475069
C37: 43.86946 | D37: 2.733602674
C38: 43.980016 | D38: 2.733758995
C39: 44.090572 | D39: 2.733939638
C40: 44.201128 | D40: 2.734140206
C41: 44.311684 | D41: 2.734356308
C42: 44.42224 | D42: 2.734583547
C43: 44.532796 | D43: 2.734817529
C44: 44.643352 | D44: 2.73505386
C45: 44.753908 | D45: 2.735288146
C46: 44.864464 | D46: 2.735515993
C47: 44.97502 | D47: 2.735733005
C48: 45.085576 | D48: 2.735934788
C49: 45.196132 | D49: 2.736116949
C50: 45.306688 | D50: 2.736275091
C51: 45.417244 | D51: 2.736404822
C52: 45.5278 | D52: 2.736501747
C53: 45.638356 | D53: 2.736561471
C54: 45.748912 | D54: 2.7365796
C55: 45.859468 | D55: 2.736551739
C56: 45.970024 | D56: 2.736473494
C57: 46.08058 | D57: 2.736340471
C58: 46.191136 | D58: 2.736148275
C59: 46.301692 | D59: 2.735892512
C60: 46.412248 | D60: 2.735568787
C61: 46.522804 | D61: 2.735172706
C62: 46.63336 | D62: 2.734699875
C63: 46.743916 | D63: 2.734145899
C64: 46.854472 | D64: 2.733506383
C65: 46.965028 | D65: 2.732777673
C66: 47.075584 | D66: 2.731962523
C67: =C66+$C$1 -> 47.18614 | D67: 2.731066982
C68: 47.296696 | D68: 2.730097122
C69: 47.407252 | D69: 2.729059018
C70: 47.517808 | D70: 2.727958745
C71: 47.628364 | D71: 2.726802376
C72: 47.73892 | D72: 2.725595986
C73: 47.849476 | D73: 2.724345649
C74: 47.960032 | D74: 2.723057438
C75: 48.070588 | D75: 2.721737428
C76: 48.181144 | D76: 2.720391693
C77: 48.2917 | D77: 2.719026308
C78: 48.402256 | D78: 2.717647346
C79: 48.512812 | D79: 2.716260881
C80: 48.623368 | D80: 2.714872988
C81: 48.733924 | D81: 2.71348974
C82: 48.84448 | D82: 2.712117213
C83: 48.955036 | D83: 2.710761479
C84: 49.065592 | D84: 2.709428614
C85: 49.176148 | D85: 2.708124691
C86: 49.286704 | D86: 2.706855784
C87: 49.39726 | D87: 2.705627967
C88: 49.507816 | D88: 2.704447316
C89: 49.618372 | D89: 2.703319903
C90: 49.728928 | D90: 2.702251803
C91: 49.839484 | D91: 2.70124909
C92: 49.95004 | D92: 2.700317838
C93: 50.060596 | D93: 2.699464708
C94: 50.171152 | D94: 2.698703931
C95: 50.281708 | D95: 2.698054997
C96: 50.392264 | D96: 2.697537506
C97: 50.50282 | D97: 2.697171056
C98: 50.613376 | D98: 2.696975246
C99: 50.723932 | D99: 2.696969673
C100: 50.834488 | D100: 2.697173938
C101: 50.945044 | D101: 2.697607637
C102: 51.0556 | D102: 2.698290371
C103: 51.166156 | D103: 2.699241737
C104: 51.276712 | D104: 2.700481333
C105: 51.387268 | D105: 2.702028759
C106: 51.497824 | D106: 2.703903613
C107: 51.60838 | D107: 2.706125493
C108: 51.718936 | D108: 2.708713999
C109: 51.829492 | D109: 2.711688727
C110: 51.940048 | D110: 2.715069278
C111: 52.050604 | D111: 2.718873484
C112: 52.16116 | D112: 2.723088878
C113: 52.271716 | D113: 2.727677512
C114: 52.382272 | D114: 2.732600642
C115: 52.492828 | D115: 2.737819526
C116: 52.603384 | D116: 2.743295419
C117: 52.71394 | D117: 2.748989579
C118: 52.824496 | D118: 2.754863263
C119: 52.935052 | D119: 2.760877728
C120: 53.045608 | D120: 2.766994231
C121: 53.156164 | D121: 2.773174028
C122: 53.26672 | D122: 2.779378378
C123: 53.377276 | D123: 2.785568535
C124: 53.487832 | D124: 2.791705759
C125: 53.598388 | D125: 2.797751304
C126: 53.708944 | D126: 2.80366643
C127: 53.8195 | D127: 2.809412391
C128: 53.930056 | D128: 2.814950446
C129: 54.040612 | D129: 2.820241851
C130: 54.151168 | D130: 2.825247864
C131: =C130+$C$1 -> 54.261724 | D131: 2.82992974
C132: 54.37228 | D132: 2.834248737
C133: 54.482836 | D133: 2.838166113
C134: 54.593392 | D134: 2.841643123
C135: 54.703948 | D135: 2.844641025
C136: 54.814504 | D136: 2.847121076
C137: 54.92506 | D137: 2.849044533
C138: 55.035616 | D138: 2.850372652
C139: 55.146172 | D139: 2.851066691
C140: 55.256728 | D140: 2.851087907
C141: 55.367284 | D141: 2.850397556
C142: 55.47784 | D142: 2.848956895
C143: 55.588396 | D143: 2.846727182
C144: 55.698952 | D144: 2.843669673
C145: 55.809508 | D145: 2.839745626
C146: 55.920064 | D146: 2.834916296
C147: 56.03062 | D147: 2.829142942
C148: 56.141176 | D148: 2.822386819
C149: 56.251732 | D149: 2.814609186
C150: 56.362288 | D150: 2.805771298
C151: 56.472844 | D151: 2.795836656
C152: 56.5834 | D152: 2.784853111
C153: 56.693956 | D153: 2.772976482
C154: 56.804512 | D154: 2.760369644
C155: 56.915068 | D155: 2.747195473
C156: 57.025624 | D156: 2.733616844
C157: 57.13618 | D157: 2.719796631
C158: 57.246736 | D158: 2.705897712
C159: 57.357292 | D159: 2.69208296
C160: 57.467848 | D160: 2.678515251
C161: 57.578404 | D161: 2.665357461
C162: 57.68896 | D162: 2.652772465
C163: 57.799516 | D163: 2.640923137
C164: 57.910072 | D164: 2.629972354
C165: 58.020628 | D165: 2.62008299
C166: 58.131184 | D166: 2.611417921
C167: 58.24174 | D167: 2.604140022
C168: 58.352296 | D168: 2.598412169
C169: 58.462852 | D169: 2.594397237
C170: 58.573408 | D170: 2.5922581
C171: 58.683964 | D171: 2.592157635
C172: 58.79452 | D172: 2.594258717
C173: 58.905076 | D173: 2.598724221
C174: 59.015632 | D174: 2.605717021
C175: 59.126188 | D175: 2.615399995
C176: 59.236744 | D176: 2.627936016
C177: 59.3473 | D177: 2.64348796
C178: 59.457856 | D178: 2.662218703
C179: 59.568412 | D179: 2.68429112
C180: 59.678968 | D180: 2.709868085
C181: 59.789524 | D181: 2.739112475
C182: 59.90008 | D182: 2.772187165
C183: 60.010636 | D183: 2.809255029
C184: 60.121192 | D184: 2.850478944
C185: 60.231748 | D185: 2.896020274
C186: 60.342304 | D186: 2.94588804
C187: 60.45286 | D187: 2.999810432
C188: 60.563416 | D188: 3.057485381
C189: 60.673972 | D189: 3.118610817
C190: 60.784528 | D190: 3.182884672
C191: 60.895084 | D191: 3.250004875
C192: 61.00564 | D192: 3.319669359
C193: 61.116196 | D193: 3.391576052
C194: 61.226752 | D194: 3.465422887
C195: =C194+$C$1 -> 61.337308 | D195: 3.540907794
C196: 61.447864 | D196: 3.617728704
C197: 61.55842 | D197: 3.695583548
C198: 61.668976 | D198: 3.774170255
C199: 61.779532 | D199: 3.853186758
C200: 61.890088 | D200: 3.932330987
... 802 more rows
